[Event "*** SCC Grand Prix: Titled Tuesday Blitz"]
[Site "Chess.com"]
[Date "2020.10.13"]
[Round "3"]
[White "Julianos82"]
[Black "kleopl"]
[Result "1-0"]
[WhiteElo "2304"]
[BlackElo "2467"]
[TimeControl "180+1"]
[EndTime "10:27:29 PDT"]
[Termination "Julianos82 won by resignation"]

1. d4 {[%clk 0:03:00.9]} 1... f5 {[%clk 0:02:57.8]} 2. g3 {[%clk 0:03:00.2]}
2... Nf6 {[%clk 0:02:57.7]} 3. Bg2 {[%clk 0:03:00.3]} 3... g6 {[%clk 0:02:58.2]}
4. Nh3 {[%clk 0:03:00.2]} 4... Bg7 {[%clk 0:02:57.9]} 5. Nf4 {[%clk 0:03:00.2]}
5... O-O {[%clk 0:02:57.2]} 6. h4 {[%clk 0:02:59.5]} 6... d6 {[%clk 0:02:56.3]}
7. d5 {[%clk 0:02:58.8]} 7... Qe8 {[%clk 0:02:49.5]} 8. h5 {[%clk 0:02:49.4]}
8... c6 {[%clk 0:02:37.9]} 9. hxg6 {[%clk 0:02:47.6]} 9... hxg6 {[%clk
0:02:37.4]} 10. c4 {[%clk 0:02:44]} 10... Bd7 {[%clk 0:02:36.5]} 11. Nc3 {[%clk
0:02:42.2]} 11... Na6 {[%clk 0:02:36.2]} 12. Be3 {[%clk 0:02:33]} 12... e5
{[%clk 0:02:21.7]} 13. dxe6 {[%clk 0:02:29.9]} 13... Bxe6 {[%clk 0:02:21.8]} 14.
Nxe6 {[%clk 0:01:58.9]} 14... Qxe6 {[%clk 0:02:21.2]} 15. Qd2 {[%clk 0:01:51.3]}
15... Qxc4 {[%clk 0:02:08.8]} 16. Qxd6 {[%clk 0:01:37.9]} 16... Rad8 {[%clk
0:01:55.1]} 17. Qf4 {[%clk 0:01:36.1]} 17... Qxf4 {[%clk 0:01:51.6]} 18. Bxf4
{[%clk 0:01:35.7]} 18... Nb4 {[%clk 0:01:49.4]} 19. O-O {[%clk 0:01:31.3]} 19...
Nfd5 {[%clk 0:01:40.6]} 20. Nxd5 {[%clk 0:01:25.9]} 20... Nxd5 {[%clk
0:01:41.5]} 21. Bg5 {[%clk 0:01:23.5]} 21... Rde8 {[%clk 0:01:37.9]} 22. e3
{[%clk 0:01:14.5]} 22... Nf6 {[%clk 0:01:29.1]} 23. Rfd1 {[%clk 0:01:09.7]}
23... Rd8 {[%clk 0:01:26.2]} 24. Kf1 {[%clk 0:01:07.4]} 24... Kf7 {[%clk
0:01:25.5]} 25. Ke2 {[%clk 0:01:06.4]} 25... Ke7 {[%clk 0:01:10]} 26. b3 {[%clk
0:01:04.5]} 26... Rxd1 {[%clk 0:01:08.8]} 27. Rxd1 {[%clk 0:01:05.4]} 27... Rd8
{[%clk 0:01:08.5]} 28. Rxd8 {[%clk 0:01:05.3]} 28... Kxd8 {[%clk 0:01:09.4]} 29.
e4 {[%clk 0:01:04.7]} 29... Ke7 {[%clk 0:01:05]} 30. e5 {[%clk 0:01:04.1]} 30...
Ke6 {[%clk 0:00:48.8]} 31. Bxf6 {[%clk 0:01:03.5]} 31... Bxf6 {[%clk 0:00:49.7]}
32. exf6 {[%clk 0:01:03.9]} 32... Kxf6 {[%clk 0:00:49.2]} 33. f4 {[%clk
0:01:04]} 33... Ke6 {[%clk 0:00:48.6]} 34. Kd3 {[%clk 0:01:04]} 34... Kd6 {[%clk
0:00:48.5]} 35. Kd4 {[%clk 0:01:03]} 35... b5 {[%clk 0:00:48.1]} 36. b4 {[%clk
0:01:02.1]} 36... a6 {[%clk 0:00:47.3]} 37. a3 {[%clk 0:01:01.9]} 1-0

[Event "*** SCC Grand Prix: Titled Tuesday Blitz"]
[Site "Chess.com"]
[Date "2020.10.13"]
[Round "3"]
[White "AttilaTurzo"]
[Black "beto-betun"]
[Result "1/2-1/2"]
[WhiteElo "2388"]
[BlackElo "2179"]
[TimeControl "180+1"]
[EndTime "10:27:34 PDT"]
[Termination "Game drawn by repetition"]

1. d4 {[%clk 0:03:00.9]} 1... Nf6 {[%clk 0:02:59.5]} 2. Nf3 {[%clk 0:03:00.5]}
2... g6 {[%clk 0:02:59.5]} 3. Bg5 {[%clk 0:02:57.4]} 3... Bg7 {[%clk 0:02:59.6]}
4. c3 {[%clk 0:02:58]} 4... O-O {[%clk 0:02:59.7]} 5. Nbd2 {[%clk 0:02:58.7]}
5... d6 {[%clk 0:03:00.2]} 6. e4 {[%clk 0:02:58.4]} 6... c5 {[%clk 0:02:59.1]}
7. dxc5 {[%clk 0:02:56.5]} 7... dxc5 {[%clk 0:03:00]} 8. Bc4 {[%clk 0:02:55.6]}
8... Bg4 {[%clk 0:02:49.2]} 9. h3 {[%clk 0:02:55.4]} 9... Bxf3 {[%clk
0:02:48.8]} 10. Qxf3 {[%clk 0:02:56.3]} 10... Nc6 {[%clk 0:02:48.3]} 11. O-O
{[%clk 0:02:44.2]} 11... Qc7 {[%clk 0:02:45.2]} 12. Qe2 {[%clk 0:02:43.1]} 12...
Rad8 {[%clk 0:02:43.4]} 13. Rfe1 {[%clk 0:02:37]} 13... e5 {[%clk 0:02:35.5]}
14. a4 {[%clk 0:02:25.5]} 14... b6 {[%clk 0:02:28.8]} 15. Bb5 {[%clk 0:02:16.9]}
15... h6 {[%clk 0:02:09.1]} 16. Bxf6 {[%clk 0:02:08]} 16... Bxf6 {[%clk
0:02:08.8]} 17. Bxc6 {[%clk 0:02:08.9]} 17... Qxc6 {[%clk 0:02:08.8]} 18. Nc4
{[%clk 0:02:09.2]} 18... Rd7 {[%clk 0:01:59.7]} 19. Qf3 {[%clk 0:02:04.8]} 19...
Rfd8 {[%clk 0:01:43]} 20. Ne3 {[%clk 0:02:04]} 20... Rd3 {[%clk 0:01:32.2]} 21.
g3 {[%clk 0:01:37.4]} 21... Bg5 {[%clk 0:01:28.8]} 22. h4 {[%clk 0:01:28.6]}
22... Bxe3 {[%clk 0:01:28.5]} 23. Rxe3 {[%clk 0:01:29.3]} 23... Rd2 {[%clk
0:01:27.4]} 24. Kg2 {[%clk 0:01:23.1]} 24... Qd6 {[%clk 0:01:23]} 25. Re2 {[%clk
0:01:19.7]} 25... Rxe2 {[%clk 0:01:21.8]} 26. Qxe2 {[%clk 0:01:19.8]} 26... Qd2
{[%clk 0:01:20.6]} 27. Qb5 {[%clk 0:01:13.6]} 27... Qd3 {[%clk 0:01:15.4]} 28.
Qxd3 {[%clk 0:00:55.3]} 28... Rxd3 {[%clk 0:01:16.3]} 29. Kf1 {[%clk 0:00:49.4]}
29... Rd2 {[%clk 0:01:16.2]} 30. Rb1 {[%clk 0:00:48.5]} 30... Kf8 {[%clk
0:01:15.7]} 31. Ke1 {[%clk 0:00:48.8]} 31... Rc2 {[%clk 0:01:15.7]} 32. Kf1
{[%clk 0:00:39.5]} 32... Ke7 {[%clk 0:01:15.5]} 33. Kg2 {[%clk 0:00:40.1]} 33...
Ke6 {[%clk 0:01:15.6]} 34. Kf3 {[%clk 0:00:41]} 34... f5 {[%clk 0:01:15.4]} 35.
exf5+ {[%clk 0:00:39.5]} 35... gxf5 {[%clk 0:01:16.3]} 36. Ke3 {[%clk
0:00:38.2]} 36... h5 {[%clk 0:01:11.6]} 37. Kf3 {[%clk 0:00:36.2]} 37... Rd2
{[%clk 0:01:09.7]} 38. Ke3 {[%clk 0:00:35.4]} 38... Rc2 {[%clk 0:01:10]} 39. Kf3
{[%clk 0:00:35.4]} 39... Rd2 {[%clk 0:01:10.4]} 40. Ke3 {[%clk 0:00:35.8]} 40...
Rc2 {[%clk 0:01:10.9]} 1/2-1/2

[Event "*** SCC Grand Prix: Titled Tuesday Blitz"]
[Site "Chess.com"]
[Date "2020.10.13"]
[Round "3"]
[White "hungrycaterpillar4"]
[Black "Oligan22"]
[Result "1-0"]
[WhiteElo "2690"]
[BlackElo "2436"]
[TimeControl "180+1"]
[EndTime "10:27:41 PDT"]
[Termination "hungrycaterpillar4 won by resignation"]

1. Nc3 {[%clk 0:03:00.9]} 1... d5 {[%clk 0:02:57.8]} 2. d4 {[%clk 0:03:00.4]}
2... c5 {[%clk 0:02:53.9]} 3. Bf4 {[%clk 0:02:53.8]} 3... Nc6 {[%clk 0:02:48.7]}
4. e3 {[%clk 0:02:51.1]} 4... a6 {[%clk 0:02:48.9]} 5. Nf3 {[%clk 0:02:51]} 5...
cxd4 {[%clk 0:02:46.7]} 6. exd4 {[%clk 0:02:50.3]} 6... Bg4 {[%clk 0:02:45.8]}
7. Be2 {[%clk 0:02:48]} 7... e6 {[%clk 0:02:45.1]} 8. O-O {[%clk 0:02:22.1]}
8... Bd6 {[%clk 0:02:44.8]} 9. Ne5 {[%clk 0:02:03.9]} 9... Bxe2 {[%clk
0:02:43.9]} 10. Nxe2 {[%clk 0:02:04.8]} 10... Nge7 {[%clk 0:02:43.4]} 11. c3
{[%clk 0:02:03.9]} 11... O-O {[%clk 0:02:43.4]} 12. Ng3 {[%clk 0:02:02.2]} 12...
f6 {[%clk 0:02:40]} 13. Nd3 {[%clk 0:01:56.7]} 13... Bxf4 {[%clk 0:02:32.8]} 14.
Nxf4 {[%clk 0:01:56.4]} 14... e5 {[%clk 0:02:33.2]} 15. dxe5 {[%clk 0:01:54]}
15... Qd7 {[%clk 0:02:25.5]} 16. e6 {[%clk 0:01:49.1]} 16... Qd6 {[%clk
0:02:23.9]} 17. Qg4 {[%clk 0:01:35.5]} 17... Ne5 {[%clk 0:02:18.3]} 18. Nf5
{[%clk 0:01:35.4]} 18... Nxf5 {[%clk 0:02:06.1]} 19. Qxf5 {[%clk 0:01:36.3]}
19... g6 {[%clk 0:02:06.5]} 20. Qh3 {[%clk 0:01:36.3]} 20... Nc4 {[%clk
0:02:02.2]} 21. Nd3 {[%clk 0:01:36]} 21... Rae8 {[%clk 0:01:59.6]} 22. Rfe1
{[%clk 0:01:34.4]} 22... f5 {[%clk 0:01:58.6]} 23. b3 {[%clk 0:01:28.1]} 23...
Na3 {[%clk 0:01:54.9]} 24. Rad1 {[%clk 0:01:22.6]} 24... Rxe6 {[%clk 0:01:54]}
25. Rxe6 {[%clk 0:01:23]} 25... Qxe6 {[%clk 0:01:54.9]} 26. Nf4 {[%clk
0:01:22.9]} 26... Qe5 {[%clk 0:01:50.6]} 27. Nxd5 {[%clk 0:01:21.4]} 27... Rd8
{[%clk 0:01:45.7]} 28. c4 {[%clk 0:01:18.7]} 28... b5 {[%clk 0:01:46.1]} 29. Qg3
{[%clk 0:01:16.9]} 29... Qe2 {[%clk 0:01:34.4]} 30. Nf6+ {[%clk 0:00:36.2]}
30... Kf7 {[%clk 0:01:32.5]} 31. Qc7+ {[%clk 0:00:36.2]} 31... Kxf6 {[%clk
0:01:31]} 32. Qxd8+ {[%clk 0:00:36.2]} 32... Kg7 {[%clk 0:01:31.2]} 33. c5
{[%clk 0:00:33.7]} 33... Nc2 {[%clk 0:01:05.5]} 34. Rd7+ {[%clk 0:00:33.2]} 1-0

[Event "*** SCC Grand Prix: Titled Tuesday Blitz"]
[Site "Chess.com"]
[Date "2020.10.13"]
[Round "3"]
[White "AldokhinIvan"]
[Black "PavelChernomordik"]
[Result "1-0"]
[WhiteElo "2553"]
[BlackElo "2330"]
[TimeControl "180+1"]
[EndTime "10:28:02 PDT"]
[Termination "AldokhinIvan won by resignation"]

1. e4 {[%clk 0:02:59.1]} 1... g6 {[%clk 0:03:00.9]} 2. d4 {[%clk 0:02:58.8]}
2... Bg7 {[%clk 0:03:01.4]} 3. Nc3 {[%clk 0:02:59.7]} 3... d6 {[%clk 0:03:01]}
4. Bg5 {[%clk 0:03:00.2]} 4... h6 {[%clk 0:02:59.4]} 5. Bh4 {[%clk 0:03:00]}
5... c5 {[%clk 0:02:58.9]} 6. d5 {[%clk 0:02:50.2]} 6... Nf6 {[%clk 0:02:53.1]}
7. f4 {[%clk 0:02:48.3]} 7... Nfd7 {[%clk 0:02:47]} 8. Nf3 {[%clk 0:02:43.9]}
8... Qa5 {[%clk 0:02:37.8]} 9. Qd2 {[%clk 0:02:38.8]} 9... a6 {[%clk 0:02:29.5]}
10. Be2 {[%clk 0:02:33.1]} 10... b5 {[%clk 0:02:28.8]} 11. O-O {[%clk
0:02:33.1]} 11... c4 {[%clk 0:02:24.2]} 12. e5 {[%clk 0:02:20.3]} 12... dxe5
{[%clk 0:02:18.3]} 13. fxe5 {[%clk 0:02:12]} 13... Nxe5 {[%clk 0:02:16.7]} 14.
Nxe5 {[%clk 0:01:57.1]} 14... Bxe5 {[%clk 0:02:14.8]} 15. Bf3 {[%clk 0:01:58]}
15... Qb6+ {[%clk 0:02:00.8]} 16. Kh1 {[%clk 0:01:53.5]} 16... g5 {[%clk
0:01:54.8]} 17. Bf2 {[%clk 0:01:53.4]} 17... Qd6 {[%clk 0:01:48.6]} 18. Ne4
{[%clk 0:01:53.3]} 18... Qc7 {[%clk 0:01:42.9]} 19. d6 {[%clk 0:01:51.1]} 19...
exd6 {[%clk 0:01:39.4]} 20. Nxd6+ {[%clk 0:01:47.4]} 20... Qxd6 {[%clk
0:01:31.4]} 21. Qxd6 {[%clk 0:01:45.1]} 21... Bxd6 {[%clk 0:01:31.4]} 22. Bxa8
{[%clk 0:01:45.2]} 22... O-O {[%clk 0:01:27.3]} 23. Rad1 {[%clk 0:01:45.4]}
23... Be5 {[%clk 0:01:25.4]} 24. Bd4 {[%clk 0:01:45.3]} 24... Bxd4 {[%clk
0:01:21.9]} 25. Rxd4 {[%clk 0:01:45]} 25... Be6 {[%clk 0:01:22.1]} 26. Bd5
{[%clk 0:01:37.2]} 26... Bxd5 {[%clk 0:01:12.5]} 27. Rxd5 {[%clk 0:01:37]} 27...
Nc6 {[%clk 0:01:12.6]} 28. c3 {[%clk 0:01:30.8]} 28... Re8 {[%clk 0:01:08.4]}
29. Rd6 {[%clk 0:01:30.2]} 29... Re6 {[%clk 0:01:06.7]} 30. Rxe6 {[%clk
0:01:27.2]} 30... fxe6 {[%clk 0:01:05.3]} 31. Rd1 {[%clk 0:01:28.1]} 31... Kf7
{[%clk 0:01:02]} 32. Rd6 {[%clk 0:01:28]} 32... Ne5 {[%clk 0:01:02.2]} 33. Rxa6
{[%clk 0:01:27.8]} 33... Nd3 {[%clk 0:01:02.5]} 34. Rb6 {[%clk 0:01:21.9]} 34...
Nxb2 {[%clk 0:00:59.6]} 35. Rxb5 {[%clk 0:01:21.9]} 35... Na4 {[%clk 0:01:00]}
36. Rb4 {[%clk 0:01:16.6]} 36... Nxc3 {[%clk 0:00:59.1]} 37. a4 {[%clk
0:01:16.9]} 37... Nd5 {[%clk 0:00:51.8]} 38. Rxc4 {[%clk 0:01:17]} 38... Ke7
{[%clk 0:00:44]} 39. a5 {[%clk 0:01:16.7]} 39... Kd7 {[%clk 0:00:44.1]} 40. a6
{[%clk 0:01:15.2]} 40... Nb6 {[%clk 0:00:43.9]} 41. a7 {[%clk 0:01:15.4]} 41...
Na8 {[%clk 0:00:35.5]} 42. g4 {[%clk 0:01:11.8]} 42... e5 {[%clk 0:00:32.5]} 43.
Kg2 {[%clk 0:01:11.1]} 1-0

[Event "*** SCC Grand Prix: Titled Tuesday Blitz"]
[Site "Chess.com"]
[Date "2020.10.13"]
[Round "3"]
[White "bratkoo"]
[Black "MariaFominykh"]
[Result "1-0"]
[WhiteElo "2538"]
[BlackElo "2305"]
[TimeControl "180+1"]
[EndTime "10:28:04 PDT"]
[Termination "bratkoo won on time"]

1. e4 {[%clk 0:03:00.9]} 1... e6 {[%clk 0:02:57.8]} 2. d4 {[%clk 0:03:00.7]}
2... d5 {[%clk 0:02:57.7]} 3. Nd2 {[%clk 0:03:01]} 3... dxe4 {[%clk 0:02:54.3]}
4. Nxe4 {[%clk 0:03:01]} 4... Nf6 {[%clk 0:02:54.5]} 5. Nxf6+ {[%clk 0:02:59.2]}
5... Qxf6 {[%clk 0:02:53.6]} 6. Nf3 {[%clk 0:02:59.3]} 6... h6 {[%clk
0:02:53.1]} 7. Be2 {[%clk 0:02:59.4]} 7... c5 {[%clk 0:02:51.5]} 8. O-O {[%clk
0:02:58.8]} 8... Nc6 {[%clk 0:02:49.3]} 9. d5 {[%clk 0:02:57.8]} 9... exd5
{[%clk 0:02:46.5]} 10. Qxd5 {[%clk 0:02:57.5]} 10... Be6 {[%clk 0:02:45.2]} 11.
Qe4 {[%clk 0:02:57.4]} 11... Qf5 {[%clk 0:02:25.7]} 12. Qe3 {[%clk 0:02:45.4]}
12... Be7 {[%clk 0:02:17.8]} 13. Bd3 {[%clk 0:02:44.1]} 13... Qh5 {[%clk
0:02:13.7]} 14. b3 {[%clk 0:02:24.4]} 14... O-O {[%clk 0:02:06.9]} 15. Bb2
{[%clk 0:02:24.5]} 15... Nb4 {[%clk 0:02:01]} 16. Be4 {[%clk 0:02:20.9]} 16...
Nd5 {[%clk 0:01:50.8]} 17. Bxd5 {[%clk 0:02:05]} 17... Qxd5 {[%clk 0:01:48.7]}
18. Rad1 {[%clk 0:02:05.5]} 18... Qf5 {[%clk 0:01:44.7]} 19. h3 {[%clk
0:02:00.3]} 19... Qxc2 {[%clk 0:01:40]} 20. Rd2 {[%clk 0:02:00.4]} 20... Qf5
{[%clk 0:01:36.3]} 21. g4 {[%clk 0:01:52.2]} 21... Qh7 {[%clk 0:01:23.9]} 22.
Rfd1 {[%clk 0:01:52.3]} 22... h5 {[%clk 0:01:13.7]} 23. Ng5 {[%clk 0:01:49.5]}
23... Bxg5 {[%clk 0:00:59.3]} 24. Qxg5 {[%clk 0:01:49.2]} 24... hxg4 {[%clk
0:00:57.5]} 25. hxg4 {[%clk 0:01:48.1]} 25... f6 {[%clk 0:00:53.5]} 26. Qf4
{[%clk 0:01:40.7]} 26... Qg6 {[%clk 0:00:42.7]} 27. f3 {[%clk 0:01:40.9]} 27...
Rac8 {[%clk 0:00:21.3]} 28. Re1 {[%clk 0:01:38.3]} 28... Rfe8 {[%clk 0:00:19.1]}
29. Kf2 {[%clk 0:01:28.8]} 29... c4 {[%clk 0:00:18.9]} 30. Rde2 {[%clk
0:01:29.1]} 30... Qf7 {[%clk 0:00:12.6]} 31. bxc4 {[%clk 0:01:25]} 31... Rxc4
{[%clk 0:00:06.4]} 32. Qxc4 {[%clk 0:01:23.9]} 32... Bxc4 {[%clk 0:00:06.2]} 33.
Rxe8+ {[%clk 0:01:23.9]} 33... Kh7 {[%clk 0:00:06.4]} 34. f4 {[%clk 0:01:17.5]}
34... Bd5 {[%clk 0:00:04.6]} 35. R1e3 {[%clk 0:01:15.8]} 35... g5 {[%clk
0:00:02.5]} 36. Rh3+ {[%clk 0:01:11.6]} 36... Kg7 {[%clk 0:00:02.3]} 37. Reh8
{[%clk 0:01:11.8]} 1-0

[Event "*** SCC Grand Prix: Titled Tuesday Blitz"]
[Site "Chess.com"]
[Date "2020.10.13"]
[Round "3"]
[White "Tayson_7"]
[Black "Snegokhod"]
[Result "1-0"]
[WhiteElo "2604"]
[BlackElo "2407"]
[TimeControl "180+1"]
[EndTime "10:28:06 PDT"]
[Termination "Tayson_7 won by checkmate"]

1. e4 {[%clk 0:03:00.9]} 1... c5 {[%clk 0:02:59.8]} 2. Nf3 {[%clk 0:02:58.9]}
2... d6 {[%clk 0:02:59.7]} 3. d4 {[%clk 0:02:59]} 3... cxd4 {[%clk 0:02:59.4]}
4. Nxd4 {[%clk 0:02:59.9]} 4... Nf6 {[%clk 0:02:59.3]} 5. f3 {[%clk 0:02:59.9]}
5... e5 {[%clk 0:02:53.6]} 6. Nb3 {[%clk 0:03:00]} 6... d5 {[%clk 0:02:53.4]} 7.
Bg5 {[%clk 0:02:54.1]} 7... d4 {[%clk 0:02:50.1]} 8. c3 {[%clk 0:02:41.9]} 8...
Nc6 {[%clk 0:02:49.5]} 9. Bb5 {[%clk 0:02:32.8]} 9... Be7 {[%clk 0:02:41.3]} 10.
cxd4 {[%clk 0:02:28.7]} 10... exd4 {[%clk 0:02:40.3]} 11. Qxd4 {[%clk
0:02:25.3]} 11... Bd7 {[%clk 0:02:27.8]} 12. Bxc6 {[%clk 0:02:22.3]} 12... Bxc6
{[%clk 0:02:27.6]} 13. Qxd8+ {[%clk 0:02:22.3]} 13... Rxd8 {[%clk 0:02:27.3]}
14. Nc3 {[%clk 0:02:22.3]} 14... h6 {[%clk 0:02:25.9]} 15. Be3 {[%clk
0:02:21.7]} 15... a6 {[%clk 0:02:25.5]} 16. Rd1 {[%clk 0:02:20.7]} 16... O-O
{[%clk 0:02:23.3]} 17. Ke2 {[%clk 0:02:18.9]} 17... Bb4 {[%clk 0:02:21.1]} 18.
Rxd8 {[%clk 0:02:17.1]} 18... Rxd8 {[%clk 0:02:20.5]} 19. Rd1 {[%clk 0:02:17.7]}
19... Rxd1 {[%clk 0:02:15.4]} 20. Kxd1 {[%clk 0:02:18.6]} 20... Bxc3 {[%clk
0:02:09.6]} 21. bxc3 {[%clk 0:02:19.5]} 21... Bb5 {[%clk 0:01:58.6]} 22. Ke1
{[%clk 0:02:12.9]} 22... Bc4 {[%clk 0:01:57.5]} 23. Na5 {[%clk 0:02:07.4]} 23...
Bxa2 {[%clk 0:01:57.1]} 24. Nxb7 {[%clk 0:02:07.3]} 24... Nd7 {[%clk 0:01:55.8]}
25. Bd4 {[%clk 0:02:02.2]} 25... f6 {[%clk 0:01:55.3]} 26. Na5 {[%clk
0:02:01.2]} 26... Kf7 {[%clk 0:01:53.1]} 27. c4 {[%clk 0:02:01.1]} 27... Ke6
{[%clk 0:01:49.7]} 28. Kd2 {[%clk 0:02:00.6]} 28... Bb1 {[%clk 0:01:43.2]} 29.
Kc3 {[%clk 0:01:44.8]} 29... g6 {[%clk 0:01:41.1]} 30. c5 {[%clk 0:01:42]} 30...
f5 {[%clk 0:01:31.3]} 31. c6 {[%clk 0:01:34.9]} 31... Nf8 {[%clk 0:01:31]} 32.
Bc5 {[%clk 0:01:11.3]} 32... Nh7 {[%clk 0:01:28.6]} 33. Nc4 {[%clk 0:01:04.9]}
33... fxe4 {[%clk 0:01:22.3]} 34. Nb6 {[%clk 0:01:02.8]} 34... Ke5 {[%clk
0:01:17.6]} 35. c7 {[%clk 0:01:00.5]} 35... exf3 {[%clk 0:01:17.8]} 36. c8=Q
{[%clk 0:00:57.2]} 36... fxg2 {[%clk 0:01:17.4]} 37. Qe8+ {[%clk 0:00:50.1]}
37... Kf5 {[%clk 0:01:15.3]} 38. Nc4 {[%clk 0:00:47.4]} 38... Ng5 {[%clk
0:01:09.9]} 39. Qe5+ {[%clk 0:00:47.2]} 39... Kg4 {[%clk 0:01:09.9]} 40. Qg3+
{[%clk 0:00:44.9]} 40... Kf5 {[%clk 0:00:57.5]} 41. Qe5+ {[%clk 0:00:41.8]}
41... Kg4 {[%clk 0:00:56.9]} 42. Ne3+ {[%clk 0:00:42.7]} 42... Kf3 {[%clk
0:00:56.4]} 43. Qg3+ {[%clk 0:00:43.6]} 43... Ke2 {[%clk 0:00:54.1]} 44. Qxg2+
{[%clk 0:00:39.7]} 44... Ke1 {[%clk 0:00:52.9]} 45. Qf1# {[%clk 0:00:39.9]} 1-0

[Event "*** SCC Grand Prix: Titled Tuesday Blitz"]
[Site "Chess.com"]
[Date "2020.10.13"]
[Round "3"]
[White "GrigorGrigorov"]
[Black "Sergey85Rodchenkov"]
[Result "1-0"]
[WhiteElo "2806"]
[BlackElo "2457"]
[TimeControl "180+1"]
[EndTime "10:28:07 PDT"]
[Termination "GrigorGrigorov won by resignation"]

1. Nf3 {[%clk 0:03:00.9]} 1... Nf6 {[%clk 0:02:59.5]} 2. c4 {[%clk 0:02:59.6]}
2... b6 {[%clk 0:02:59.4]} 3. g3 {[%clk 0:02:59.3]} 3... Bb7 {[%clk 0:02:59.6]}
4. Bg2 {[%clk 0:02:59.7]} 4... e6 {[%clk 0:03:00.2]} 5. d4 {[%clk 0:02:59.5]}
5... Be7 {[%clk 0:03:00.3]} 6. O-O {[%clk 0:02:59.2]} 6... O-O {[%clk
0:03:00.8]} 7. Nc3 {[%clk 0:02:57.8]} 7... Na6 {[%clk 0:03:00.8]} 8. d5 {[%clk
0:02:51.9]} 8... Bb4 {[%clk 0:03:00.1]} 9. Nd4 {[%clk 0:02:36]} 9... Bxc3 {[%clk
0:02:59.2]} 10. bxc3 {[%clk 0:02:35.6]} 10... Nc5 {[%clk 0:02:59.7]} 11. Nb3
{[%clk 0:02:30.1]} 11... d6 {[%clk 0:02:49.6]} 12. Nxc5 {[%clk 0:02:26.7]} 12...
bxc5 {[%clk 0:02:49.7]} 13. dxe6 {[%clk 0:02:17.9]} 13... Bxg2 {[%clk
0:02:49.2]} 14. exf7+ {[%clk 0:02:18.2]} 14... Rxf7 {[%clk 0:02:49.6]} 15. Kxg2
{[%clk 0:02:18.7]} 15... Qe8 {[%clk 0:02:48.9]} 16. f3 {[%clk 0:02:13.7]} 16...
Qc6 {[%clk 0:02:43.4]} 17. Qd3 {[%clk 0:02:11]} 17... Re8 {[%clk 0:02:42.6]} 18.
e4 {[%clk 0:02:09.7]} 18... h6 {[%clk 0:02:39.1]} 19. Bd2 {[%clk 0:02:05.1]}
19... Nd7 {[%clk 0:02:36.6]} 20. Qd5 {[%clk 0:01:44.5]} 20... Qa6 {[%clk
0:02:34.5]} 21. Bf4 {[%clk 0:01:09.4]} 21... Nb6 {[%clk 0:02:33.3]} 22. Qc6
{[%clk 0:01:06.4]} 22... Ree7 {[%clk 0:02:33.4]} 23. Qb5 {[%clk 0:01:01.3]}
23... Qc8 {[%clk 0:02:19.2]} 24. a4 {[%clk 0:00:44]} 24... Qe6 {[%clk
0:02:18.1]} 25. a5 {[%clk 0:00:37.5]} 25... Nxc4 {[%clk 0:02:17.8]} 26. Qb8+
{[%clk 0:00:37.9]} 26... Re8 {[%clk 0:02:09.4]} 27. Qxa7 {[%clk 0:00:36.3]}
27... g5 {[%clk 0:02:07.8]} 28. Bc1 {[%clk 0:00:35.8]} 28... g4 {[%clk
0:02:08.1]} 29. Qb7 {[%clk 0:00:29]} 29... gxf3+ {[%clk 0:02:00.6]} 30. Rxf3
{[%clk 0:00:28.3]} 30... Rxf3 {[%clk 0:02:00.5]} 31. Kxf3 {[%clk 0:00:28.4]}
31... Rf8+ {[%clk 0:01:45.5]} 32. Kg2 {[%clk 0:00:25.7]} 32... Qf6 {[%clk
0:01:21.6]} 33. Qd5+ {[%clk 0:00:24.7]} 33... Kh7 {[%clk 0:01:17.6]} 34. Bf4
{[%clk 0:00:21.6]} 34... Qxc3 {[%clk 0:01:16.2]} 35. Rc1 {[%clk 0:00:06.3]}
35... Rxf4 {[%clk 0:01:07.7]} 36. Rxc3 {[%clk 0:00:05.3]} 36... Ne3+ {[%clk
0:01:07.6]} 37. Rxe3 {[%clk 0:00:04.7]} 1-0

[Event "*** SCC Grand Prix: Titled Tuesday Blitz"]
[Site "Chess.com"]
[Date "2020.10.13"]
[Round "3"]
[White "BJthechessgod"]
[Black "pfalcon1949"]
[Result "1-0"]
[WhiteElo "2259"]
[BlackElo "1940"]
[TimeControl "180+1"]
[EndTime "10:28:07 PDT"]
[Termination "BJthechessgod won on time"]

1. e4 {[%clk 0:03:00.9]} 1... c6 {[%clk 0:02:59]} 2. d4 {[%clk 0:03:00.3]} 2...
d5 {[%clk 0:02:58.9]} 3. Nc3 {[%clk 0:03:01.2]} 3... dxe4 {[%clk 0:02:57.6]} 4.
Nxe4 {[%clk 0:03:02.1]} 4... Nf6 {[%clk 0:02:57.8]} 5. Nxf6+ {[%clk 0:02:53.3]}
5... exf6 {[%clk 0:02:57.3]} 6. c3 {[%clk 0:02:54.2]} 6... Bd6 {[%clk
0:02:55.3]} 7. Bd3 {[%clk 0:02:55.1]} 7... O-O {[%clk 0:02:53.3]} 8. Qc2 {[%clk
0:02:56]} 8... h5 {[%clk 0:02:52.5]} 9. Ne2 {[%clk 0:02:56.8]} 9... Nd7 {[%clk
0:02:50.8]} 10. Be3 {[%clk 0:02:57.3]} 10... Re8 {[%clk 0:02:50.8]} 11. O-O-O
{[%clk 0:02:46.2]} 11... Nf8 {[%clk 0:02:50.4]} 12. Ng3 {[%clk 0:02:43.5]} 12...
g6 {[%clk 0:02:42.8]} 13. Bh6 {[%clk 0:02:37.8]} 13... f5 {[%clk 0:02:38.2]} 14.
Rde1 {[%clk 0:02:21.8]} 14... Be6 {[%clk 0:02:34.1]} 15. Kb1 {[%clk 0:02:14.6]}
15... Qa5 {[%clk 0:02:31.8]} 16. b3 {[%clk 0:02:07.4]} 16... Rac8 {[%clk
0:02:23.3]} 17. c4 {[%clk 0:01:51]} 17... Nh7 {[%clk 0:02:11]} 18. Ne2 {[%clk
0:01:31.1]} 18... Bb4 {[%clk 0:02:08.5]} 19. Rd1 {[%clk 0:01:28.5]} 19... b5
{[%clk 0:02:00.5]} 20. c5 {[%clk 0:01:26.6]} 20... Bd5 {[%clk 0:01:39.7]} 21.
Nf4 {[%clk 0:01:25.7]} 21... Be4 {[%clk 0:01:39]} 22. f3 {[%clk 0:01:23.4]}
22... Bxd3 {[%clk 0:01:37]} 23. Nxd3 {[%clk 0:01:23.3]} 23... Ba3 {[%clk
0:01:30.1]} 24. g4 {[%clk 0:01:21.9]} 24... fxg4 {[%clk 0:01:15.2]} 25. fxg4
{[%clk 0:01:22.8]} 25... hxg4 {[%clk 0:01:14.5]} 26. Ne5 {[%clk 0:01:18.3]}
26... Re6 {[%clk 0:00:51.5]} 27. Rhf1 {[%clk 0:01:13.5]} 27... f5 {[%clk
0:00:49]} 28. Nxg6 {[%clk 0:01:12.8]} 28... Rce8 {[%clk 0:00:32]} 29. Qxf5
{[%clk 0:01:12.2]} 29... Rf6 {[%clk 0:00:23.9]} 30. Ne7+ {[%clk 0:01:05.7]}
30... Rxe7 {[%clk 0:00:23.2]} 31. Qc8+ {[%clk 0:01:05.9]} 31... Kf7 {[%clk
0:00:17]} 32. Rxf6+ {[%clk 0:01:05.9]} 32... Nxf6 {[%clk 0:00:16.3]} 33. Qf8+
{[%clk 0:01:05.2]} 33... Ke6 {[%clk 0:00:16.3]} 34. Bg5 {[%clk 0:01:01.1]} 34...
Rf7 {[%clk 0:00:12.1]} 35. Qc8+ {[%clk 0:01:01.3]} 35... Nd7 {[%clk 0:00:11.4]}
36. Qe8+ {[%clk 0:01:01]} 36... Kf5 {[%clk 0:00:02.3]} 37. Qxf7+ {[%clk
0:01:01.4]} 37... Kxg5 {[%clk 0:00:03]} 38. h4+ {[%clk 0:01:01.7]} 38... gxh3
{[%clk 0:00:01.6]} 39. Rg1+ {[%clk 0:01:02]} 1-0